[Event "December 5 Late 2023"]
[Site "https://www.chess.com"]
[Date "2023.12.05"]
[Round "11"]
[White "Bluebaum, Matthias"]
[Black "Maksimovic, Bojan"]
[Result "1-0"]
[Board "8"]
[TimeControl "180+1"]
[WhiteFideId "24651516"]
[BlackFideId "14408120"]
[WhiteElo "3026"]
[BlackElo "2938"]
[WhiteTeam "GER"]
[BlackTeam "BIH"]
[WhiteClock "0:00:19"]
[BlackClock "0:00:00"]

1. d4 {[%clk 0:03:00]}  a6 {[%clk 0:02:51]} 2. c4 {[%clk 0:03:01]}  b5 {[%clk 0:02:51]} 3. Nc3 {[%clk 0:03:01]}  b4 {[%clk 0:02:48]} 4. Ne4 {[%clk 0:03:02]}  Nf6 {[%clk 0:02:43]} 5. Nxf6+ {[%clk 0:02:55]}  exf6 {[%clk 0:02:44]} 6. e4 {[%clk 0:02:56]}  a5 {[%clk 0:02:40]} 7. Nf3 {[%clk 0:02:55]}  Be7 {[%clk 0:02:29]} 8. Bd3 {[%clk 0:02:54]}  O-O {[%clk 0:02:29]} 9. h4 {[%clk 0:02:50]}  d6 {[%clk 0:02:27]} 10. e5 {[%clk 0:02:41]}  dxe5 {[%clk 0:02:02]} 11. dxe5 {[%clk 0:02:37]}  Nc6 {[%clk 0:02:02]} 12. Qc2 {[%clk 0:02:30]}  h6 {[%clk 0:02:00]} 13. Bh7+ {[%clk 0:02:25]}  Kh8 {[%clk 0:01:59]} 14. Be4 {[%clk 0:02:26]}  Bb7 {[%clk 0:01:53]} 15. O-O {[%clk 0:02:20]}  fxe5 {[%clk 0:01:49]} 16. Rd1 {[%clk 0:02:05]}  Qc8 {[%clk 0:01:39]} 17. Bf5 {[%clk 0:02:05]}  Qb8 {[%clk 0:01:39]} 18. Be3 {[%clk 0:02:05]}  Ra6 {[%clk 0:01:33]} 19. c5 {[%clk 0:01:58]}  Nd4 {[%clk 0:01:26]} 20. Nxd4 {[%clk 0:01:56]}  exd4 {[%clk 0:01:26]} 21. Rxd4 {[%clk 0:01:53]}  Bf6 {[%clk 0:01:24]} 22. Rd2 {[%clk 0:01:43]}  Qa8 {[%clk 0:01:21]} 23. g3 {[%clk 0:01:14]}  Bh1 {[%clk 0:01:20]} 24. Bh3 {[%clk 0:01:14]}  Be4 {[%clk 0:01:19]} 25. Qc4 {[%clk 0:01:12]}  Bxh4 {[%clk 0:00:59]} 26. gxh4 {[%clk 0:00:59]}  Rg6+ {[%clk 0:00:58]} 27. Kh2 {[%clk 0:00:59]}  Bf5 {[%clk 0:00:42]} 28. Qd5 {[%clk 0:00:58]}  Qxd5 {[%clk 0:00:29]} 29. Rxd5 {[%clk 0:00:59]}  Be4 {[%clk 0:00:30]} 30. Rd4 {[%clk 0:00:57]}  Bc6 {[%clk 0:00:28]} 31. h5 {[%clk 0:00:50]}  Rf6 {[%clk 0:00:26]} 32. Bd7 {[%clk 0:00:49]}  Bf3 {[%clk 0:00:25]} 33. Bg4 {[%clk 0:00:48]}  Bxg4 {[%clk 0:00:24]} 34. Rxg4 {[%clk 0:00:49]}  Rf5 {[%clk 0:00:25]} 35. Rh4 {[%clk 0:00:46]}  Rd8 {[%clk 0:00:25]} 36. Rg1 {[%clk 0:00:45]}  Rdd5 {[%clk 0:00:25]} 37. Rgg4 {[%clk 0:00:38]}  Rxh5 {[%clk 0:00:19]} 38. Rxh5 {[%clk 0:00:39]}  Rxh5+ {[%clk 0:00:20]} 39. Kg3 {[%clk 0:00:39]}  f5 {[%clk 0:00:14]} 40. Rd4 {[%clk 0:00:40]}  g5 {[%clk 0:00:14]} 41. Kg2 {[%clk 0:00:37]}  f4 {[%clk 0:00:13]} 42. Bd2 {[%clk 0:00:38]}  Kg7 {[%clk 0:00:07]} 43. f3 {[%clk 0:00:33]}  Kf6 {[%clk 0:00:06]} 44. a3 {[%clk 0:00:31]}  Ke6 {[%clk 0:00:06]} 45. axb4 {[%clk 0:00:31]}  axb4 {[%clk 0:00:07]} 46. Bxb4 {[%clk 0:00:27]}  c6 {[%clk 0:00:07]} 47. Rd6+ {[%clk 0:00:27]}  Kf5 {[%clk 0:00:08]} 48. Rxc6 {[%clk 0:00:22]}  g4 {[%clk 0:00:09]} 49. fxg4+ {[%clk 0:00:23]}  Kxg4 {[%clk 0:00:09]} 50. Rg6+ {[%clk 0:00:23]}  Kf5 {[%clk 0:00:10]} 51. Rg8 {[%clk 0:00:23]}  Ke6 {[%clk 0:00:10]} 52. c6 {[%clk 0:00:23]}  f3+ {[%clk 0:00:01]} 53. Kxf3 {[%clk 0:00:22]}  Rh3+ {[%clk 0:00:02]} 54. Kg2 {[%clk 0:00:21]}  Rb3 {[%clk 0:00:02]} 55. c7 {[%clk 0:00:22]}  Rxb2+ {[%clk 0:00:02]} 56. Kh3 {[%clk 0:00:20]}  Rb3+ {[%clk 0:00:02]} 57. Kg2 {[%clk 0:00:19]}  Rb2+ {[%clk 0:00:03]} 58. Kf1 {[%clk 0:00:19]}  Rb1+ {[%clk 0:00:03]} 59. Ke2 {[%clk 0:00:19]}  Rxb4 {[%clk 0:00:04]} 60. c8=Q+ {[%clk 0:00:19]}  Kd5 {[%clk 0:00:04]} 61. Rd8+ {[%clk 0:00:19]}  Ke4 {[%clk 0:00:04]} 62. Qg4+ {[%clk 0:00:19]}  Ke5 {[%clk 0:00:04]} 63. Qxb4 {[%clk 0:00:19]}  h5 {[%clk 0:00:05]} 64. Qd4+ {[%clk 0:00:19]}  Ke6 {[%clk 0:00:00]} 65. Rh8 {[%clk 0:00:19]} 1-0

[Event "December 5 Late 2023"]
[Site "https://www.chess.com"]
[Date "2023.12.05"]
[Round "11"]
[White "Paravyan, David"]
[Black "Sattarov, Bobir"]
[Result "0-1"]
[Board "9"]
[TimeControl "180+1"]
[WhiteFideId "4194985"]
[BlackFideId "14203081"]
[WhiteElo "3004"]
[BlackElo "2776"]
[WhiteTeam "FID"]
[BlackTeam "UZB"]
[WhiteClock "0:00:00"]
[BlackClock "0:00:24"]

1. e4 {[%clk 0:03:00]}  e5 {[%clk 0:02:59]} 2. Nf3 {[%clk 0:03:00]}  Nc6 {[%clk 0:02:59]} 3. Bc4 {[%clk 0:02:59]}  Bc5 {[%clk 0:02:59]} 4. d3 {[%clk 0:02:59]}  d6 {[%clk 0:02:59]} 5. Nc3 {[%clk 0:02:57]}  h6 {[%clk 0:02:57]} 6. Na4 {[%clk 0:02:56]}  Qf6 {[%clk 0:02:55]} 7. Nxc5 {[%clk 0:02:55]}  dxc5 {[%clk 0:02:56]} 8. Be3 {[%clk 0:02:42]}  b6 {[%clk 0:02:55]} 9. c3 {[%clk 0:02:42]}  Nge7 {[%clk 0:02:54]} 10. a3 {[%clk 0:02:41]}  O-O {[%clk 0:02:54]} 11. b4 {[%clk 0:02:41]}  cxb4 {[%clk 0:02:50]} 12. axb4 {[%clk 0:02:42]}  a5 {[%clk 0:02:49]} 13. O-O {[%clk 0:02:38]}  Bg4 {[%clk 0:02:47]} 14. b5 {[%clk 0:02:37]}  Nd8 {[%clk 0:02:44]} 15. d4 {[%clk 0:02:32]}  Ng6 {[%clk 0:02:39]} 16. h3 {[%clk 0:02:29]}  Be6 {[%clk 0:02:32]} 17. Be2 {[%clk 0:02:19]}  Nb7 {[%clk 0:02:29]} 18. Nxe5 {[%clk 0:02:05]}  Nxe5 {[%clk 0:02:28]} 19. dxe5 {[%clk 0:02:06]}  Qxe5 {[%clk 0:02:28]} 20. Qd4 {[%clk 0:02:06]}  f6 {[%clk 0:01:57]} 21. f4 {[%clk 0:02:04]}  Qxd4 {[%clk 0:01:53]} 22. cxd4 {[%clk 0:02:05]}  Nd6 {[%clk 0:01:52]} 23. d5 {[%clk 0:01:54]}  Bf7 {[%clk 0:01:42]} 24. e5 {[%clk 0:01:51]}  Nf5 {[%clk 0:01:38]} 25. Bf2 {[%clk 0:01:44]}  fxe5 {[%clk 0:01:35]} 26. Rfc1 {[%clk 0:01:38]}  Bxd5 {[%clk 0:01:25]} 27. Rxc7 {[%clk 0:01:35]}  Nd4 {[%clk 0:01:12]} 28. Bxd4 {[%clk 0:01:19]}  exd4 {[%clk 0:01:12]} 29. Rd7 {[%clk 0:01:20]}  Rfd8 {[%clk 0:01:12]} 30. Rxd8+ {[%clk 0:00:37]}  Rxd8 {[%clk 0:01:12]} 31. Kf2 {[%clk 0:00:37]}  Bb3 {[%clk 0:01:07]} 32. Bd3 {[%clk 0:00:34]}  Rc8 {[%clk 0:01:05]} 33. Re1 {[%clk 0:00:29]}  Kf7 {[%clk 0:01:00]} 34. Re4 {[%clk 0:00:14]}  a4 {[%clk 0:00:53]} 35. Rxd4 {[%clk 0:00:14]}  a3 {[%clk 0:00:53]} 36. Rd7+ {[%clk 0:00:14]}  Kf6 {[%clk 0:00:44]} 37. Ra7 {[%clk 0:00:12]}  a2 {[%clk 0:00:43]} 38. Ra6 {[%clk 0:00:02]}  Ke7 {[%clk 0:00:39]} 39. Ra7+ {[%clk 0:00:01]}  Kd6 {[%clk 0:00:39]} 40. Ra6 {[%clk 0:00:02]}  Rc1 {[%clk 0:00:33]} 41. Rxb6+ {[%clk 0:00:02]}  Kc7 {[%clk 0:00:33]} 42. Ra6 {[%clk 0:00:01]}  a1=Q {[%clk 0:00:31]} 43. Rxa1 {[%clk 0:00:02]}  Rxa1 {[%clk 0:00:31]} 44. g4 {[%clk 0:00:03]}  Kb6 {[%clk 0:00:30]} 45. h4 {[%clk 0:00:02]}  Kc5 {[%clk 0:00:30]} 46. Ke3 {[%clk 0:00:02]}  Bc4 {[%clk 0:00:29]} 47. Bg6 {[%clk 0:00:01]}  Bxb5 {[%clk 0:00:28]} 48. Ke4 {[%clk 0:00:02]}  Kd6 {[%clk 0:00:26]} 49. f5 {[%clk 0:00:02]}  Ra4+ {[%clk 0:00:25]} 50. Kf3 {[%clk 0:00:03]}  Ke5 {[%clk 0:00:25]} 51. g5 {[%clk 0:00:00]}  Rxh4 {[%clk 0:00:24]} 0-1

[Event "December 5 Late 2023"]
[Site "https://www.chess.com"]
[Date "2023.12.05"]
[Round "11"]
[White "Kazakouski, Valery"]
[Black "Naroditsky, Daniel"]
[Result "1-0"]
[Board "10"]
[TimeControl "180+1"]
[WhiteFideId "13507443"]
[BlackFideId "2026961"]
[WhiteElo "2852"]
[BlackElo "3149"]
[WhiteTeam "LTU"]
[BlackTeam "USA"]
[WhiteClock "0:00:06"]
[BlackClock "0:00:02"]

1. e4 {[%clk 0:02:59]}  c5 {[%clk 0:02:59]} 2. Nf3 {[%clk 0:02:59]}  d6 {[%clk 0:03:00]} 3. d4 {[%clk 0:02:58]}  cxd4 {[%clk 0:03:01]} 4. Nxd4 {[%clk 0:02:59]}  Nf6 {[%clk 0:03:02]} 5. Nc3 {[%clk 0:02:59]}  a6 {[%clk 0:03:02]} 6. Bd3 {[%clk 0:03:00]}  e5 {[%clk 0:02:56]} 7. Nde2 {[%clk 0:03:00]}  Be7 {[%clk 0:02:52]} 8. O-O {[%clk 0:02:59]}  O-O {[%clk 0:02:52]} 9. Kh1 {[%clk 0:03:00]}  b5 {[%clk 0:02:51]} 10. f4 {[%clk 0:02:55]}  Nbd7 {[%clk 0:02:50]} 11. Ng3 {[%clk 0:02:52]}  g6 {[%clk 0:02:44]} 12. Be3 {[%clk 0:02:50]}  Bb7 {[%clk 0:02:44]} 13. Qf3 {[%clk 0:02:40]}  b4 {[%clk 0:02:35]} 14. Nd1 {[%clk 0:02:36]}  d5 {[%clk 0:02:35]} 15. Nf2 {[%clk 0:02:33]}  Rc8 {[%clk 0:02:05]} 16. Rae1 {[%clk 0:02:31]}  dxe4 {[%clk 0:01:22]} 17. Nfxe4 {[%clk 0:02:27]}  Nxe4 {[%clk 0:01:22]} 18. Bxe4 {[%clk 0:02:21]}  Bxe4 {[%clk 0:01:21]} 19. Qxe4 {[%clk 0:02:18]}  exf4 {[%clk 0:01:04]} 20. Bxf4 {[%clk 0:02:18]}  Bf6 {[%clk 0:01:04]} 21. Rd1 {[%clk 0:02:11]}  Re8 {[%clk 0:00:57]} 22. Qb7 {[%clk 0:02:09]}  Nc5 {[%clk 0:00:54]} 23. Qxb4 {[%clk 0:02:08]}  Qe7 {[%clk 0:00:49]} 24. Bd6 {[%clk 0:02:05]}  Qe6 {[%clk 0:00:15]} 25. Bxc5 {[%clk 0:02:01]}  a5 {[%clk 0:00:16]} 26. Qxa5 {[%clk 0:01:51]}  Bxb2 {[%clk 0:00:12]} 27. Rfe1 {[%clk 0:01:39]}  Qc4 {[%clk 0:00:08]} 28. Rxe8+ {[%clk 0:01:05]}  Rxe8 {[%clk 0:00:09]} 29. Bg1 {[%clk 0:00:56]}  Qxc2 {[%clk 0:00:09]} 30. Qd2 {[%clk 0:00:54]}  Qa4 {[%clk 0:00:06]} 31. Rb1 {[%clk 0:00:49]}  Bf6 {[%clk 0:00:04]} 32. Bc5 {[%clk 0:00:43]}  h5 {[%clk 0:00:04]} 33. a3 {[%clk 0:00:41]}  h4 {[%clk 0:00:04]} 34. Nf1 {[%clk 0:00:34]}  h3 {[%clk 0:00:05]} 35. Bb4 {[%clk 0:00:28]}  Qc6 {[%clk 0:00:04]} 36. Ng3 {[%clk 0:00:22]}  Rd8 {[%clk 0:00:02]} 37. Qf2 {[%clk 0:00:19]}  Bd4 {[%clk 0:00:02]} 38. Qf3 {[%clk 0:00:20]}  hxg2+ {[%clk 0:00:02]} 39. Qxg2 {[%clk 0:00:20]}  Qe6 {[%clk 0:00:02]} 40. Re1 {[%clk 0:00:20]}  Qc4 {[%clk 0:00:02]} 41. Rd1 {[%clk 0:00:17]}  Re8 {[%clk 0:00:02]} 42. Ne4 {[%clk 0:00:13]}  Re6 {[%clk 0:00:02]} 43. Nd6 {[%clk 0:00:12]}  Qb3 {[%clk 0:00:01]} 44. Rxd4 {[%clk 0:00:10]}  Qb1+ {[%clk 0:00:01]} 45. Qg1 {[%clk 0:00:10]}  Qc2 {[%clk 0:00:02]} 46. Qf1 {[%clk 0:00:07]}  Re2 {[%clk 0:00:02]} 47. Qxf7+ {[%clk 0:00:06]}  Kh8 {[%clk 0:00:02]} 48. Rh4# {[%clk 0:00:06]} 1-0

[Event "December 5 Late 2023"]
[Site "https://www.chess.com"]
[Date "2023.12.05"]
[Round "11"]
[White "Martinez Alcantara, Jose Eduardo"]
[Black "Korchmar, Vasiliy"]
[Result "1-0"]
[Board "13"]
[TimeControl "180+1"]
[WhiteFideId "3805662"]
[BlackFideId "24131750"]
[WhiteElo "2986"]
[BlackElo "2811"]
[WhiteTeam "PER"]
[BlackTeam "RUS"]
[WhiteClock "0:02:08"]
[BlackClock "0:00:11"]

1. a4 {[%clk 0:02:58]}  d5 {[%clk 0:02:59]} 2. e3 {[%clk 0:02:58]}  e5 {[%clk 0:02:59]} 3. d4 {[%clk 0:02:59]}  e4 {[%clk 0:02:58]} 4. c4 {[%clk 0:02:59]}  c6 {[%clk 0:02:57]} 5. Nc3 {[%clk 0:02:59]}  Nf6 {[%clk 0:02:57]} 6. Qb3 {[%clk 0:03:00]}  Be7 {[%clk 0:02:56]} 7. Nge2 {[%clk 0:02:59]}  Na6 {[%clk 0:02:56]} 8. cxd5 {[%clk 0:02:59]}  cxd5 {[%clk 0:02:56]} 9. Nf4 {[%clk 0:02:59]}  Nc7 {[%clk 0:02:56]} 10. h4 {[%clk 0:02:57]}  O-O {[%clk 0:02:54]} 11. Bd2 {[%clk 0:02:57]}  Bd6 {[%clk 0:02:53]} 12. Nfxd5 {[%clk 0:02:49]}  Nfxd5 {[%clk 0:02:36]} 13. Nxd5 {[%clk 0:02:50]}  Be6 {[%clk 0:02:36]} 14. Bc4 {[%clk 0:02:50]}  Rc8 {[%clk 0:02:15]} 15. Nc3 {[%clk 0:02:45]}  Bxc4 {[%clk 0:02:02]} 16. Qxc4 {[%clk 0:02:46]}  Ne6 {[%clk 0:02:02]} 17. Qd5 {[%clk 0:02:42]}  Qb6 {[%clk 0:01:54]} 18. Qb5 {[%clk 0:02:42]}  Qc7 {[%clk 0:01:43]} 19. Nxe4 {[%clk 0:02:40]}  Nxd4 {[%clk 0:01:42]} 20. exd4 {[%clk 0:02:38]}  Qe7 {[%clk 0:01:33]} 21. f3 {[%clk 0:02:36]}  Rc2 {[%clk 0:01:07]} 22. Kd1 {[%clk 0:02:34]}  Rfc8 {[%clk 0:01:04]} 23. Rc1 {[%clk 0:02:32]}  Rxc1+ {[%clk 0:00:39]} 24. Bxc1 {[%clk 0:02:33]}  Qc7 {[%clk 0:00:39]} 25. Nc3 {[%clk 0:02:31]}  a6 {[%clk 0:00:31]} 26. Qd3 {[%clk 0:02:26]}  Rd8 {[%clk 0:00:29]} 27. Kc2 {[%clk 0:02:25]}  b5 {[%clk 0:00:29]} 28. axb5 {[%clk 0:02:25]}  axb5 {[%clk 0:00:30]} 29. Qxb5 {[%clk 0:02:25]}  Rb8 {[%clk 0:00:27]} 30. Qd5 {[%clk 0:02:26]}  Bb4 {[%clk 0:00:26]} 31. Re1 {[%clk 0:02:19]}  h6 {[%clk 0:00:22]} 32. Qe5 {[%clk 0:02:14]}  Qa7 {[%clk 0:00:17]} 33. Re3 {[%clk 0:02:10]}  Rc8 {[%clk 0:00:15]} 34. Qb5 {[%clk 0:02:07]}  Qxd4 {[%clk 0:00:11]} 35. Re8+ {[%clk 0:02:08]} 1-0

[Event "December 5 Late 2023"]
[Site "https://www.chess.com"]
[Date "2023.12.05"]
[Round "11"]
[White "Cieslak, Patryk"]
[Black "Demchenko, Anton"]
[Result "1-0"]
[Board "18"]
[TimeControl "180+1"]
[WhiteFideId "21078882"]
[BlackFideId "4160258"]
[WhiteElo "2679"]
[BlackElo "2894"]
[WhiteTeam "POL"]
[BlackTeam "SLO"]
[WhiteClock "0:00:03"]
[BlackClock "0:00:00"]

1. d4 {[%clk 0:03:00]}  Nf6 {[%clk 0:02:59]} 2. c4 {[%clk 0:03:00]}  d6 {[%clk 0:03:00]} 3. Nf3 {[%clk 0:02:58]}  Nc6 {[%clk 0:03:00]} 4. Nc3 {[%clk 0:02:58]}  e5 {[%clk 0:03:00]} 5. d5 {[%clk 0:02:51]}  Ne7 {[%clk 0:03:00]} 6. g3 {[%clk 0:02:51]}  Ng6 {[%clk 0:03:00]} 7. Bg2 {[%clk 0:02:51]}  Be7 {[%clk 0:03:00]} 8. O-O {[%clk 0:02:52]}  O-O {[%clk 0:03:01]} 9. Ne1 {[%clk 0:02:51]}  h6 {[%clk 0:02:51]} 10. e4 {[%clk 0:02:50]}  Nh7 {[%clk 0:02:51]} 11. Nd3 {[%clk 0:02:49]}  f5 {[%clk 0:02:48]} 12. exf5 {[%clk 0:02:44]}  Bxf5 {[%clk 0:02:48]} 13. Ne4 {[%clk 0:02:43]}  Bg5 {[%clk 0:02:45]} 14. Qe2 {[%clk 0:02:37]}  Bxc1 {[%clk 0:02:35]} 15. Raxc1 {[%clk 0:02:38]}  Nf6 {[%clk 0:02:35]} 16. Nxf6+ {[%clk 0:02:33]}  Qxf6 {[%clk 0:02:33]} 17. Be4 {[%clk 0:02:33]}  Rae8 {[%clk 0:02:28]} 18. f3 {[%clk 0:02:30]}  Ne7 {[%clk 0:02:26]} 19. Nf2 {[%clk 0:02:29]}  b6 {[%clk 0:02:14]} 20. b4 {[%clk 0:02:26]}  Bd7 {[%clk 0:02:01]} 21. Kg2 {[%clk 0:02:24]}  Nf5 {[%clk 0:02:01]} 22. Bxf5 {[%clk 0:02:24]}  Bxf5 {[%clk 0:01:59]} 23. Ne4 {[%clk 0:02:24]}  Qf7 {[%clk 0:01:57]} 24. Qd3 {[%clk 0:02:14]}  Rd8 {[%clk 0:01:35]} 25. a3 {[%clk 0:02:10]}  Rd7 {[%clk 0:01:32]} 26. Rcd1 {[%clk 0:02:07]}  Rdd8 {[%clk 0:01:06]} 27. Qe3 {[%clk 0:02:06]}  Qd7 {[%clk 0:01:07]} 28. Kg1 {[%clk 0:02:05]}  Rf7 {[%clk 0:00:55]} 29. Rf2 {[%clk 0:02:04]}  Rdf8 {[%clk 0:00:54]} 30. Kg2 {[%clk 0:02:02]}  Bh3+ {[%clk 0:00:39]} 31. Kg1 {[%clk 0:02:01]}  Bf5 {[%clk 0:00:35]} 32. Rdd2 {[%clk 0:01:53]}  Qa4 {[%clk 0:00:34]} 33. Kg2 {[%clk 0:01:48]}  a5 {[%clk 0:00:31]} 34. bxa5 {[%clk 0:01:14]}  Qxa5 {[%clk 0:00:31]} 35. Ra2 {[%clk 0:01:05]}  Qa4 {[%clk 0:00:31]} 36. Qd3 {[%clk 0:00:56]}  Ra8 {[%clk 0:00:28]} 37. Rfb2 {[%clk 0:00:41]}  Qd7 {[%clk 0:00:28]} 38. Rf2 {[%clk 0:00:38]}  Kh8 {[%clk 0:00:26]} 39. Qe3 {[%clk 0:00:38]}  Bh7 {[%clk 0:00:25]} 40. Nc3 {[%clk 0:00:38]}  Raf8 {[%clk 0:00:21]} 41. a4 {[%clk 0:00:36]}  Ra8 {[%clk 0:00:21]} 42. Rf1 {[%clk 0:00:25]}  Bf5 {[%clk 0:00:22]} 43. Kg1 {[%clk 0:00:25]}  Rf6 {[%clk 0:00:20]} 44. Raf2 {[%clk 0:00:20]}  Bh3 {[%clk 0:00:20]} 45. Ra1 {[%clk 0:00:20]}  Rf7 {[%clk 0:00:18]} 46. Qd2 {[%clk 0:00:17]}  Raf8 {[%clk 0:00:16]} 47. Qe3 {[%clk 0:00:18]}  Bg4 {[%clk 0:00:16]} 48. Raf1 {[%clk 0:00:14]}  Bf5 {[%clk 0:00:16]} 49. Ra1 {[%clk 0:00:13]}  Qe7 {[%clk 0:00:15]} 50. a5 {[%clk 0:00:12]}  bxa5 {[%clk 0:00:16]} 51. Rxa5 {[%clk 0:00:12]}  Rb8 {[%clk 0:00:16]} 52. Ra1 {[%clk 0:00:12]}  Rb3 {[%clk 0:00:15]} 53. Qd2 {[%clk 0:00:11]}  Qf6 {[%clk 0:00:13]} 54. Raf1 {[%clk 0:00:11]}  Bh3 {[%clk 0:00:13]} 55. Re1 {[%clk 0:00:09]}  Qg6 {[%clk 0:00:13]} 56. c5 {[%clk 0:00:08]}  Rb4 {[%clk 0:00:12]} 57. cxd6 {[%clk 0:00:07]}  cxd6 {[%clk 0:00:13]} 58. Qe3 {[%clk 0:00:07]}  Rd4 {[%clk 0:00:13]} 59. Rd1 {[%clk 0:00:05]}  Rxd1+ {[%clk 0:00:12]} 60. Nxd1 {[%clk 0:00:06]}  Qb1 {[%clk 0:00:12]} 61. Rd2 {[%clk 0:00:06]}  Bd7 {[%clk 0:00:10]} 62. Kg2 {[%clk 0:00:04]}  Bb5 {[%clk 0:00:09]} 63. Qf2 {[%clk 0:00:03]}  Bc4 {[%clk 0:00:08]} 64. Ne3 {[%clk 0:00:03]}  Ba6 {[%clk 0:00:08]} 65. Rb2 {[%clk 0:00:03]}  Qd3 {[%clk 0:00:07]} 66. Rd2 {[%clk 0:00:03]}  Qc3 {[%clk 0:00:06]} 67. Rc2 {[%clk 0:00:03]}  Qb4 {[%clk 0:00:06]} 68. Qd2 {[%clk 0:00:03]}  Qb8 {[%clk 0:00:05]} 69. Rb2 {[%clk 0:00:03]}  Qf8 {[%clk 0:00:05]} 70. Qf2 {[%clk 0:00:03]}  Bd3 {[%clk 0:00:04]} 71. Kg1 {[%clk 0:00:01]}  Be4 {[%clk 0:00:04]} 72. Qd2 {[%clk 0:00:01]}  Bxf3 {[%clk 0:00:04]} 73. Qd3 {[%clk 0:00:01]}  Bh5 {[%clk 0:00:04]} 74. Rg2 {[%clk 0:00:01]}  g6 {[%clk 0:00:04]} 75. Qd2 {[%clk 0:00:01]}  Bf3 {[%clk 0:00:03]} 76. Rf2 {[%clk 0:00:02]}  e4 {[%clk 0:00:04]} 77. Qd4+ {[%clk 0:00:01]}  Kh7 {[%clk 0:00:05]} 78. g4 {[%clk 0:00:01]}  Rb7 {[%clk 0:00:05]} 79. Qd2 {[%clk 0:00:01]}  Rb1+ {[%clk 0:00:05]} 80. Rf1 {[%clk 0:00:01]}  Rxf1+ {[%clk 0:00:04]} 81. Nxf1 {[%clk 0:00:02]}  Qf6 {[%clk 0:00:04]} 82. h3 {[%clk 0:00:02]}  Qe5 {[%clk 0:00:05]} 83. Ne3 {[%clk 0:00:02]}  h5 {[%clk 0:00:05]} 84. gxh5 {[%clk 0:00:02]}  Qg5+ {[%clk 0:00:05]} 85. Kf1 {[%clk 0:00:02]}  Qxh5 {[%clk 0:00:06]} 86. h4 {[%clk 0:00:02]}  Qxh4 {[%clk 0:00:06]} 87. Qd4 {[%clk 0:00:02]}  Qh1+ {[%clk 0:00:06]} 88. Kf2 {[%clk 0:00:01]}  Qh2+ {[%clk 0:00:07]} 89. Kf1 {[%clk 0:00:02]}  Qh3+ {[%clk 0:00:06]} 90. Kf2 {[%clk 0:00:02]}  g5 {[%clk 0:00:06]} 91. Nf1 {[%clk 0:00:02]}  Qh4+ {[%clk 0:00:06]} 92. Ke3 {[%clk 0:00:01]}  Qf4+ {[%clk 0:00:07]} 93. Kf2 {[%clk 0:00:02]}  Bg4+ {[%clk 0:00:06]} 94. Kg1 {[%clk 0:00:02]}  Bh3 {[%clk 0:00:06]} 95. Qa7+ {[%clk 0:00:02]}  Kh6 {[%clk 0:00:05]} 96. Ne3 {[%clk 0:00:01]}  Qg3+ {[%clk 0:00:05]} 97. Kh1 {[%clk 0:00:02]}  Bg4 {[%clk 0:00:05]} 98. Nxg4+ {[%clk 0:00:02]}  Qxg4 {[%clk 0:00:05]} 99. Qe7 {[%clk 0:00:02]}  Qf3+ {[%clk 0:00:05]} 100. Kh2 {[%clk 0:00:03]}  Qf4+ {[%clk 0:00:06]} 101. Kg2 {[%clk 0:00:03]}  e3 {[%clk 0:00:06]} 102. Qe6+ {[%clk 0:00:03]}  Kg7 {[%clk 0:00:05]} 103. Qe7+ {[%clk 0:00:03]}  Kg6 {[%clk 0:00:05]} 104. Qe6+ {[%clk 0:00:04]}  Qf6 {[%clk 0:00:03]} 105. Qe8+ {[%clk 0:00:04]}  Kf5 {[%clk 0:00:02]} 106. Qxe3 {[%clk 0:00:03]}  g4 {[%clk 0:00:03]} 107. Qd3+ {[%clk 0:00:03]}  Kg5 {[%clk 0:00:00]} 108. Qe3+ {[%clk 0:00:03]} 1-0

[Event "December 5 Late 2023"]
[Site "https://www.chess.com"]
[Date "2023.12.05"]
[Round "11"]
[White "Galaktionov, Artem"]
[Black "Mendes Aaron Reeve"]
[Result "1-0"]
[Board "22"]
[TimeControl "180+1"]
[WhiteFideId "24175471"]
[BlackFideId "25954938"]
[WhiteElo "2835"]
[BlackElo "2657"]
[WhiteTeam "RUS"]
[BlackTeam "CAN"]
[WhiteClock "0:01:26"]
[BlackClock "0:00:42"]

1. d4 {[%clk 0:03:00]}  d5 {[%clk 0:02:59]} 2. Nf3 {[%clk 0:03:00]}  Nf6 {[%clk 0:02:57]} 3. c4 {[%clk 0:02:59]}  c6 {[%clk 0:02:57]} 4. Qb3 {[%clk 0:02:58]}  e6 {[%clk 0:02:55]} 5. Nc3 {[%clk 0:02:58]}  Nbd7 {[%clk 0:02:55]} 6. Bg5 {[%clk 0:02:58]}  Qa5 {[%clk 0:02:54]} 7. Bd2 {[%clk 0:02:55]}  Bb4 {[%clk 0:02:53]} 8. a3 {[%clk 0:02:55]}  Bxc3 {[%clk 0:02:53]} 9. Bxc3 {[%clk 0:02:55]}  Qb6 {[%clk 0:02:53]} 10. Qxb6 {[%clk 0:02:53]}  Nxb6 {[%clk 0:02:53]} 11. c5 {[%clk 0:02:54]}  Na4 {[%clk 0:02:53]} 12. Nd2 {[%clk 0:02:49]}  Nxc3 {[%clk 0:02:52]} 13. bxc3 {[%clk 0:02:50]}  b6 {[%clk 0:02:49]} 14. cxb6 {[%clk 0:02:40]}  axb6 {[%clk 0:02:50]} 15. e3 {[%clk 0:02:39]}  O-O {[%clk 0:02:48]} 16. Bd3 {[%clk 0:02:39]}  Ba6 {[%clk 0:02:49]} 17. Ke2 {[%clk 0:02:39]}  Nd7 {[%clk 0:02:46]} 18. a4 {[%clk 0:02:36]}  Bxd3+ {[%clk 0:02:45]} 19. Kxd3 {[%clk 0:02:37]}  Ra7 {[%clk 0:02:44]} 20. Ra2 {[%clk 0:02:36]}  Rfa8 {[%clk 0:02:45]} 21. Rha1 {[%clk 0:02:36]}  c5 {[%clk 0:02:42]} 22. c4 {[%clk 0:02:35]}  dxc4+ {[%clk 0:02:38]} 23. Kxc4 {[%clk 0:02:31]}  cxd4 {[%clk 0:02:38]} 24. exd4 {[%clk 0:02:32]}  Ra5 {[%clk 0:02:37]} 25. Kb4 {[%clk 0:02:30]}  Nb8 {[%clk 0:02:28]} 26. Nb3 {[%clk 0:02:29]}  Nc6+ {[%clk 0:02:27]} 27. Kc4 {[%clk 0:02:27]}  b5+ {[%clk 0:02:03]} 28. Kc5 {[%clk 0:01:51]}  R5a6 {[%clk 0:01:54]} 29. Kxb5 {[%clk 0:01:42]}  Kf8 {[%clk 0:01:49]} 30. a5 {[%clk 0:01:37]}  Ke7 {[%clk 0:01:41]} 31. Ra4 {[%clk 0:01:36]}  Kd6 {[%clk 0:01:29]} 32. Nc5 {[%clk 0:01:35]}  R6a7 {[%clk 0:01:24]} 33. a6 {[%clk 0:01:35]}  Kd5 {[%clk 0:01:24]} 34. Kb6 {[%clk 0:01:32]}  Nxd4 {[%clk 0:01:04]} 35. Rd1 {[%clk 0:01:26]}  e5 {[%clk 0:01:03]} 36. Nb3 {[%clk 0:01:24]}  Re7 {[%clk 0:00:45]} 37. Nxd4 {[%clk 0:01:24]}  Rb8+ {[%clk 0:00:44]} 38. Ka5 {[%clk 0:01:24]}  exd4 {[%clk 0:00:42]} 39. Rdxd4+ {[%clk 0:01:24]}  Ke6 {[%clk 0:00:42]} 40. Re4+ {[%clk 0:01:25]}  Kf6 {[%clk 0:00:42]} 41. Rxe7 {[%clk 0:01:25]}  Kxe7 {[%clk 0:00:43]} 42. a7 {[%clk 0:01:26]}  Ra8 {[%clk 0:00:42]} 43. Kb6 {[%clk 0:01:26]} 1-0